[Event "Betsys MČR v online bleskovém šachu 2021"]
[Site "Chess.com"]
[Date "2021.04.17"]
[Round "5"]
[White "krajic001"]
[Black "pkozubik"]
[Result "0-1"]
[WhiteElo "1237"]
[BlackElo "1153"]
[TimeControl "180+1"]
[EndTime "9:46:10 PDT"]
[Termination "Uživatel pkozubik zvítězil na čas"]

1. e4 {[%clk 0:03:00.9]} 1... c6 {[%clk 0:02:59.1]} 2. d4 {[%clk 0:02:59.2]}
2... d5 {[%clk 0:03:00]} 3. exd5 {[%clk 0:02:57.3]} 3... cxd5 {[%clk 0:03:00]}
4. c3 {[%clk 0:02:57]} 4... Nf6 {[%clk 0:02:59.6]} 5. Bf4 {[%clk 0:02:53.3]}
5... Nc6 {[%clk 0:02:58.9]} 6. Nf3 {[%clk 0:02:48.9]} 6... Bg4 {[%clk
0:02:57.6]} 7. h3 {[%clk 0:02:45.1]} 7... Bh5 {[%clk 0:02:57.7]} 8. Be2 {[%clk
0:02:36.7]} 8... e6 {[%clk 0:02:56.2]} 9. Ne5 {[%clk 0:02:21.7]} 9... Bxe2
{[%clk 0:02:51.5]} 10. Qxe2 {[%clk 0:02:20.1]} 10... Nxe5 {[%clk 0:02:34]} 11.
Bxe5 {[%clk 0:02:15.3]} 11... Bd6 {[%clk 0:02:32.9]} 12. Nd2 {[%clk 0:02:09.1]}
12... O-O {[%clk 0:02:28.3]} 13. Nf3 {[%clk 0:01:42.7]} 13... Ne4 {[%clk
0:02:24.1]} 14. Bxd6 {[%clk 0:01:34.2]} 14... Qxd6 {[%clk 0:02:23.3]} 15. Ne5
{[%clk 0:01:33.3]} 15... f6 {[%clk 0:02:22.8]} 16. Ng4 {[%clk 0:01:26.1]} 16...
e5 {[%clk 0:02:17.4]} 17. c4 {[%clk 0:01:18]} 17... Rae8 {[%clk 0:02:13]} 18. c5
{[%clk 0:01:07.4]} 18... Qc7 {[%clk 0:02:09]} 19. O-O {[%clk 0:00:56.5]} 19...
exd4 {[%clk 0:02:04.7]} 20. Qf3 {[%clk 0:00:51.3]} 20... Qxc5 {[%clk 0:01:52.5]}
21. Rac1 {[%clk 0:00:46.2]} 21... Qd6 {[%clk 0:01:34]} 22. Rfd1 {[%clk 0:00:40]}
22... Ng5 {[%clk 0:01:27.2]} 23. Qb3 {[%clk 0:00:32.9]} 23... Re4 {[%clk
0:01:15.3]} 24. Qxb7 {[%clk 0:00:20.4]} 24... Rfe8 {[%clk 0:01:12.5]} 0-1

[Event "Betsys MČR v online bleskovém šachu 2021"]
[Site "Chess.com"]
[Date "2021.04.17"]
[Round "5"]
[White "Akdub"]
[Black "KdybyNecoTakNic"]
[Result "0-1"]
[WhiteElo "2092"]
[BlackElo "2325"]
[TimeControl "180+1"]
[EndTime "9:46:11 PDT"]
[Termination "Uživatel KdybyNecoTakNic zvítězil po vzdání soupeře"]

1. e4 {[%clk 0:03:00.9]} 1... e6 {[%clk 0:02:59.7]} 2. d4 {[%clk 0:03:00.4]}
2... d5 {[%clk 0:02:59.8]} 3. Nd2 {[%clk 0:03:00.5]} 3... c5 {[%clk 0:02:59.3]}
4. exd5 {[%clk 0:02:59.3]} 4... Qxd5 {[%clk 0:02:59.3]} 5. Ndf3 {[%clk
0:02:57.8]} 5... cxd4 {[%clk 0:02:45.5]} 6. Qxd4 {[%clk 0:02:51.2]} 6... Nf6
{[%clk 0:02:38.6]} 7. Bc4 {[%clk 0:02:25.2]} 7... Qxd4 {[%clk 0:02:28.4]} 8.
Nxd4 {[%clk 0:02:24.5]} 8... Bd7 {[%clk 0:02:25.8]} 9. Ngf3 {[%clk 0:02:22.3]}
9... a6 {[%clk 0:02:14.1]} 10. O-O {[%clk 0:02:13]} 10... Nc6 {[%clk 0:02:13.7]}
11. Bg5 {[%clk 0:02:06]} 11... Bc5 {[%clk 0:02:10.4]} 12. Rad1 {[%clk 0:01:58]}
12... Rc8 {[%clk 0:02:08.2]} 13. Bb3 {[%clk 0:01:33.8]} 13... h6 {[%clk
0:02:06.6]} 14. Bh4 {[%clk 0:01:18.8]} 14... g5 {[%clk 0:02:02.8]} 15. Bg3
{[%clk 0:01:18.4]} 15... Ne4 {[%clk 0:02:02.6]} 16. c3 {[%clk 0:01:02.3]} 16...
Nxg3 {[%clk 0:02:01.8]} 17. hxg3 {[%clk 0:01:00.8]} 17... Nxd4 {[%clk
0:01:32.8]} 18. Nxd4 {[%clk 0:00:59.6]} 18... Be7 {[%clk 0:01:06.7]} 19. Rfe1
{[%clk 0:00:57.9]} 19... Rc5 {[%clk 0:01:00.3]} 20. Rd2 {[%clk 0:00:49.8]} 20...
b5 {[%clk 0:00:54.9]} 21. Red1 {[%clk 0:00:49.6]} 21... O-O {[%clk 0:00:49.1]}
22. Bc2 {[%clk 0:00:44.8]} 22... Bc8 {[%clk 0:00:45.7]} 23. Nb3 {[%clk
0:00:40.6]} 23... Rc7 {[%clk 0:00:40.8]} 24. Be4 {[%clk 0:00:36.5]} 24... Bf6
{[%clk 0:00:40.5]} 25. Rd8 {[%clk 0:00:32.7]} 25... Rxd8 {[%clk 0:00:38.4]} 0-1

[Event "Betsys MČR v online bleskovém šachu 2021"]
[Site "Chess.com"]
[Date "2021.04.17"]
[Round "5"]
[White "TarantAnk"]
[Black "MrNikdo"]
[Result "0-1"]
[WhiteElo "1729"]
[BlackElo "2038"]
[TimeControl "180+1"]
[EndTime "9:46:12 PDT"]
[Termination "Uživatel MrNikdo zvítězil po vzdání soupeře"]

1. e4 {[%clk 0:03:00.9]} 1... c5 {[%clk 0:02:59.6]} 2. Nf3 {[%clk 0:03:01.1]}
2... Nc6 {[%clk 0:03:00.2]} 3. Nc3 {[%clk 0:03:01.6]} 3... Nf6 {[%clk
0:02:59.8]} 4. d4 {[%clk 0:03:01.9]} 4... cxd4 {[%clk 0:02:55.6]} 5. Nxd4 {[%clk
0:03:02.3]} 5... e5 {[%clk 0:02:56.2]} 6. Ndb5 {[%clk 0:03:01.7]} 6... d6 {[%clk
0:02:56.5]} 7. Nd5 {[%clk 0:02:59.7]} 7... Nxd5 {[%clk 0:02:53.9]} 8. exd5
{[%clk 0:02:59]} 8... Ne7 {[%clk 0:02:54.4]} 9. Bc4 {[%clk 0:02:48.8]} 9... Ng6
{[%clk 0:02:44.6]} 10. O-O {[%clk 0:02:45]} 10... Be7 {[%clk 0:02:43.9]} 11. f4
{[%clk 0:02:37.3]} 11... a6 {[%clk 0:02:39.5]} 12. Nc3 {[%clk 0:02:33.6]} 12...
b5 {[%clk 0:02:39.1]} 13. Bb3 {[%clk 0:02:31.4]} 13... Qb6+ {[%clk 0:02:36.2]}
14. Kh1 {[%clk 0:02:29.6]} 14... exf4 {[%clk 0:02:36.5]} 15. Bxf4 {[%clk
0:02:28.6]} 15... Nxf4 {[%clk 0:02:22.8]} 16. Rxf4 {[%clk 0:02:27.8]} 16... O-O
{[%clk 0:02:23.3]} 17. Ne4 {[%clk 0:02:14.8]} 17... f5 {[%clk 0:02:16.9]} 18.
Ng3 {[%clk 0:02:08.2]} 18... Bg5 {[%clk 0:02:11.7]} 19. Rf1 {[%clk 0:02:03.2]}
19... Qe3 {[%clk 0:01:38.1]} 20. Qe2 {[%clk 0:01:47.3]} 20... Qxe2 {[%clk
0:01:32.6]} 21. Nxe2 {[%clk 0:01:46.9]} 21... Bf6 {[%clk 0:01:28.3]} 22. c3
{[%clk 0:01:46.2]} 22... Be5 {[%clk 0:01:27.7]} 23. Rae1 {[%clk 0:01:44.9]}
23... f4 {[%clk 0:01:24.6]} 24. h3 {[%clk 0:01:35.1]} 24... f3 {[%clk
0:01:19.6]} 25. gxf3 {[%clk 0:01:31.4]} 25... Bxh3 {[%clk 0:01:19]} 26. Rg1
{[%clk 0:01:25.1]} 26... Rxf3 {[%clk 0:01:15.5]} 27. Bc2 {[%clk 0:00:59.7]}
27... Rf2 {[%clk 0:01:08.7]} 28. Rxg7+ {[%clk 0:00:33.2]} 28... Kxg7 {[%clk
0:01:06.9]} 29. Kg1 {[%clk 0:00:32.3]} 29... Raf8 {[%clk 0:01:03.1]} 0-1

[Event "Betsys MČR v online bleskovém šachu 2021"]
[Site "Chess.com"]
[Date "2021.04.17"]
[Round "5"]
[White "HonzaVykouk"]
[Black "TerezaRodshtein"]
[Result "1-0"]
[WhiteElo "2687"]
[BlackElo "2185"]
[TimeControl "180+1"]
[EndTime "9:46:13 PDT"]
[Termination "Uživatel HonzaVykouk zvítězil po vzdání soupeře"]

1. e4 {[%clk 0:03:00.9]} 1... e5 {[%clk 0:02:59.5]} 2. Nf3 {[%clk 0:03:00.9]}
2... Nc6 {[%clk 0:02:59.1]} 3. Bc4 {[%clk 0:03:01.6]} 3... Nf6 {[%clk
0:02:55.8]} 4. Ng5 {[%clk 0:03:02]} 4... d5 {[%clk 0:02:53.5]} 5. exd5 {[%clk
0:03:02.9]} 5... b5 {[%clk 0:02:52.2]} 6. Bf1 {[%clk 0:03:02.4]} 6... Nd4 {[%clk
0:02:48.5]} 7. c3 {[%clk 0:03:02.2]} 7... Nxd5 {[%clk 0:02:48.6]} 8. cxd4 {[%clk
0:03:01.8]} 8... Qxg5 {[%clk 0:02:47.5]} 9. Bxb5+ {[%clk 0:03:01.7]} 9... Kd8
{[%clk 0:02:47.4]} 10. Qf3 {[%clk 0:02:59.9]} 10... Bb7 {[%clk 0:02:32.4]} 11.
O-O {[%clk 0:02:58.8]} 11... f5 {[%clk 0:02:10]} 12. d3 {[%clk 0:02:51.9]} 12...
Qg6 {[%clk 0:02:00.8]} 13. Nc3 {[%clk 0:02:29.7]} 13... e4 {[%clk 0:01:20.6]}
14. dxe4 {[%clk 0:02:20.5]} 14... Nxc3 {[%clk 0:01:18.2]} 15. Qxc3 {[%clk
0:02:20.2]} 15... Bd6 {[%clk 0:01:11.2]} 16. g3 {[%clk 0:01:36.1]} 16... f4
{[%clk 0:01:00.3]} 17. e5 {[%clk 0:01:21.2]} 17... fxg3 {[%clk 0:00:52.3]} 18.
hxg3 {[%clk 0:01:14.6]} 18... Be7 {[%clk 0:00:44.5]} 19. d5 {[%clk 0:00:59.7]}
19... Bxd5 {[%clk 0:00:38.4]} 20. Rd1 {[%clk 0:00:59.5]} 20... Qe6 {[%clk
0:00:13.3]} 21. Bc6 {[%clk 0:00:54.9]} 1-0

[Event "Betsys MČR v online bleskovém šachu 2021"]
[Site "Chess.com"]
[Date "2021.04.17"]
[Round "5"]
[White "Honzik1950"]
[Black "CZMaster666"]
[Result "0-1"]
[WhiteElo "1510"]
[BlackElo "1862"]
[TimeControl "180+1"]
[EndTime "9:46:15 PDT"]
[Termination "Uživatel CZMaster666 zvítězil po vzdání soupeře"]

1. e4 {[%clk 0:03:00.9]} 1... e5 {[%clk 0:02:58.9]} 2. Nf3 {[%clk 0:03:00.8]}
2... Nc6 {[%clk 0:02:59]} 3. Bb5 {[%clk 0:03:00.8]} 3... a6 {[%clk 0:02:57.7]}
4. Ba4 {[%clk 0:03:00.3]} 4... Nf6 {[%clk 0:02:56.8]} 5. O-O {[%clk 0:03:00.4]}
5... Be7 {[%clk 0:02:52.8]} 6. Re1 {[%clk 0:03:00.6]} 6... b5 {[%clk 0:02:52.7]}
7. Bb3 {[%clk 0:03:00.4]} 7... O-O {[%clk 0:02:51.8]} 8. c3 {[%clk 0:02:59.9]}
8... d6 {[%clk 0:02:52.1]} 9. d3 {[%clk 0:02:59.4]} 9... Na5 {[%clk 0:02:51]}
10. Bc2 {[%clk 0:02:59]} 10... c5 {[%clk 0:02:51.7]} 11. Nbd2 {[%clk 0:02:58.6]}
11... Nc6 {[%clk 0:02:51.8]} 12. Nf1 {[%clk 0:02:58]} 12... Qc7 {[%clk
0:02:50.3]} 13. Ng3 {[%clk 0:02:55.6]} 13... Ne8 {[%clk 0:02:50.3]} 14. Be3
{[%clk 0:02:40.7]} 14... Nd8 {[%clk 0:02:42.4]} 15. Nf5 {[%clk 0:02:30]} 15...
g6 {[%clk 0:02:34.8]} 16. Ng3 {[%clk 0:02:17.4]} 16... Ng7 {[%clk 0:02:32.7]}
17. h3 {[%clk 0:02:12.3]} 17... f6 {[%clk 0:02:32.3]} 18. Bh6 {[%clk 0:02:06]}
18... Nf7 {[%clk 0:02:31.4]} 19. Be3 {[%clk 0:01:59.4]} 19... f5 {[%clk
0:02:28.5]} 20. exf5 {[%clk 0:01:55.1]} 20... Nxf5 {[%clk 0:02:27.7]} 21. Nxf5
{[%clk 0:01:52.7]} 21... Bxf5 {[%clk 0:02:28.6]} 22. d4 {[%clk 0:01:31.5]} 22...
cxd4 {[%clk 0:02:07]} 23. Bxf5 {[%clk 0:01:23.7]} 23... dxe3 {[%clk 0:02:07.3]}
24. Be6 {[%clk 0:01:21.6]} 24... exf2+ {[%clk 0:02:06.9]} 25. Kxf2 {[%clk
0:01:21]} 25... Kg7 {[%clk 0:02:04.4]} 26. Qd5 {[%clk 0:01:13.7]} 26... Ng5
{[%clk 0:02:02.4]} 27. Kg1 {[%clk 0:01:07.6]} 27... Nxf3+ {[%clk 0:01:59.6]} 28.
gxf3 {[%clk 0:01:07.9]} 28... Bh4 {[%clk 0:01:48.2]} 29. Re2 {[%clk 0:00:55.7]}
29... Rae8 {[%clk 0:01:41.3]} 30. Kg2 {[%clk 0:00:50.2]} 30... Rf4 {[%clk
0:01:40.8]} 31. Rd1 {[%clk 0:00:38.5]} 31... Qe7 {[%clk 0:01:39.7]} 32. Bg4
{[%clk 0:00:16.1]} 32... h5 {[%clk 0:01:39]} 33. Qxd6 {[%clk 0:00:16.3]} 33...
hxg4 {[%clk 0:01:37.6]} 34. Qxe7+ {[%clk 0:00:13.5]} 34... Rxe7 {[%clk
0:01:37.7]} 35. hxg4 {[%clk 0:00:13.7]} 35... e4 {[%clk 0:01:34.8]} 36. fxe4
{[%clk 0:00:11.7]} 36... Rxg4+ {[%clk 0:01:32.5]} 37. Kh3 {[%clk 0:00:10.6]}
37... Rgxe4 {[%clk 0:01:30.1]} 38. Rxe4 {[%clk 0:00:10.8]} 38... Rxe4 {[%clk
0:01:31]} 39. Rd7+ {[%clk 0:00:09.9]} 39... Be7 {[%clk 0:01:30.1]} 0-1

[Event "Betsys MČR v online bleskovém šachu 2021"]
[Site "Chess.com"]
[Date "2021.04.17"]
[Round "5"]
[White "Jindrich4321"]
[Black "tucnak64"]
[Result "0-1"]
[WhiteElo "1932"]
[BlackElo "2109"]
[TimeControl "180+1"]
[EndTime "9:46:17 PDT"]
[Termination "Uživatel tucnak64 zvítězil po vzdání soupeře"]

1. d4 {[%clk 0:03:00.9]} 1... d5 {[%clk 0:02:59.3]} 2. Nf3 {[%clk 0:03:00.5]}
2... Nf6 {[%clk 0:02:58.5]} 3. Bf4 {[%clk 0:03:00.7]} 3... Bf5 {[%clk
0:02:56.7]} 4. e3 {[%clk 0:02:59]} 4... e6 {[%clk 0:02:54.6]} 5. Bd3 {[%clk
0:02:58.7]} 5... Bxd3 {[%clk 0:02:48.3]} 6. Qxd3 {[%clk 0:02:58.5]} 6... Nbd7
{[%clk 0:02:47.8]} 7. O-O {[%clk 0:02:57.7]} 7... Be7 {[%clk 0:02:47]} 8. Nbd2
{[%clk 0:02:56.5]} 8... O-O {[%clk 0:02:45.9]} 9. c3 {[%clk 0:02:55.8]} 9... c5
{[%clk 0:02:45.2]} 10. h3 {[%clk 0:02:52.3]} 10... c4 {[%clk 0:02:38.5]} 11. Qc2
{[%clk 0:02:45.2]} 11... b5 {[%clk 0:02:38.5]} 12. a3 {[%clk 0:02:44.2]} 12...
a5 {[%clk 0:02:37.9]} 13. e4 {[%clk 0:02:43.8]} 13... dxe4 {[%clk 0:02:29.1]}
14. Nxe4 {[%clk 0:02:42.7]} 14... Nb6 {[%clk 0:02:25.7]} 15. Ne5 {[%clk
0:02:36.2]} 15... Nbd5 {[%clk 0:02:22.9]} 16. Nc6 {[%clk 0:02:25]} 16... Qe8
{[%clk 0:02:18.2]} 17. Nxe7+ {[%clk 0:02:23.9]} 17... Qxe7 {[%clk 0:02:18.1]}
18. Bg5 {[%clk 0:02:21.6]} 18... h6 {[%clk 0:02:13]} 19. Bh4 {[%clk 0:02:17.5]}
19... Rfc8 {[%clk 0:01:57.3]} 20. Rfe1 {[%clk 0:02:10.4]} 20... b4 {[%clk
0:01:50.8]} 21. axb4 {[%clk 0:02:08.9]} 21... axb4 {[%clk 0:01:50.7]} 22. Rxa8
{[%clk 0:02:04.1]} 22... Rxa8 {[%clk 0:01:50.1]} 23. Nxf6+ {[%clk 0:01:59.6]}
23... Nxf6 {[%clk 0:01:48.6]} 24. Qe2 {[%clk 0:01:29.7]} 24... Rc8 {[%clk
0:01:42.4]} 25. Qe5 {[%clk 0:01:22.1]} 25... g5 {[%clk 0:01:13]} 26. Bg3 {[%clk
0:01:20.4]} 26... bxc3 {[%clk 0:01:12.5]} 27. bxc3 {[%clk 0:01:19.4]} 27... Rd8
{[%clk 0:01:01.1]} 28. h4 {[%clk 0:01:15.7]} 28... Nd5 {[%clk 0:00:56.7]} 29.
hxg5 {[%clk 0:01:03.9]} 29... Qxg5 {[%clk 0:00:53.9]} 30. Qxg5+ {[%clk
0:00:50.2]} 30... hxg5 {[%clk 0:00:54.8]} 31. Rc1 {[%clk 0:00:49.7]} 31... Ra8
{[%clk 0:00:54.2]} 32. f3 {[%clk 0:00:48.9]} 32... Ra2 {[%clk 0:00:51.9]} 33.
Be1 {[%clk 0:00:45.7]} 33... Nf4 {[%clk 0:00:49.2]} 34. Bf2 {[%clk 0:00:41.6]}
34... Ne2+ {[%clk 0:00:47.8]} 0-1

[Event "Betsys MČR v online bleskovém šachu 2021"]
[Site "Chess.com"]
[Date "2021.04.17"]
[Round "5"]
[White "kominekmart"]
[Black "Maty122"]
[Result "1-0"]
[WhiteElo "1576"]
[BlackElo "1146"]
[TimeControl "180+1"]
[EndTime "9:46:17 PDT"]
[Termination "Uživatel kominekmart zvítězil matem"]

1. e4 {[%clk 0:03:00.9]} 1... e5 {[%clk 0:03:00.3]} 2. Nf3 {[%clk 0:03:00.3]}
2... Nc6 {[%clk 0:03:00.6]} 3. Bc4 {[%clk 0:02:59.7]} 3... Nge7 {[%clk 0:02:57]}
4. d4 {[%clk 0:02:56.6]} 4... exd4 {[%clk 0:02:51.5]} 5. Nxd4 {[%clk 0:02:55.9]}
5... Nxd4 {[%clk 0:02:46.7]} 6. Qxd4 {[%clk 0:02:54.9]} 6... d6 {[%clk
0:02:46.4]} 7. O-O {[%clk 0:02:49]} 7... Nc6 {[%clk 0:02:41.9]} 8. Bb5 {[%clk
0:02:34.8]} 8... Bd7 {[%clk 0:02:36.9]} 9. Qd1 {[%clk 0:02:29.9]} 9... Be7
{[%clk 0:02:33.9]} 10. Nc3 {[%clk 0:02:27.7]} 10... O-O {[%clk 0:02:33]} 11. Nd5
{[%clk 0:02:27.2]} 11... Be6 {[%clk 0:02:25]} 12. Nxe7+ {[%clk 0:02:26.1]} 12...
Qxe7 {[%clk 0:02:23.7]} 13. c3 {[%clk 0:02:09.8]} 13... Ne5 {[%clk 0:02:17.7]}
14. Be3 {[%clk 0:01:52.7]} 14... c6 {[%clk 0:02:15.4]} 15. Ba4 {[%clk
0:01:48.3]} 15... Qf6 {[%clk 0:02:07]} 16. Bd4 {[%clk 0:01:39.3]} 16... Rfd8
{[%clk 0:02:01.4]} 17. f4 {[%clk 0:01:36.4]} 17... b5 {[%clk 0:01:47.8]} 18.
fxe5 {[%clk 0:01:27]} 18... dxe5 {[%clk 0:01:45.1]} 19. Rxf6 {[%clk 0:01:16.1]}
19... exd4 {[%clk 0:01:39.5]} 20. Rxe6 {[%clk 0:00:59.3]} 20... bxa4 {[%clk
0:01:31.2]} 21. Re7 {[%clk 0:00:56.8]} 21... d3 {[%clk 0:01:23]} 22. Qf3 {[%clk
0:00:54.5]} 22... f6 {[%clk 0:01:19.7]} 23. Rd1 {[%clk 0:00:49.5]} 23... d2
{[%clk 0:01:18.9]} 24. e5 {[%clk 0:00:45.2]} 24... Rf8 {[%clk 0:01:08]} 25. Qg4
{[%clk 0:00:36.7]} 25... Rf7 {[%clk 0:01:01.3]} 26. Rxf7 {[%clk 0:00:35.6]}
26... Kxf7 {[%clk 0:01:01.3]} 27. Qd7+ {[%clk 0:00:35.1]} 27... Kg6 {[%clk
0:01:00.1]} 28. exf6 {[%clk 0:00:34.8]} 28... gxf6 {[%clk 0:00:59.8]} 29. Rxd2
{[%clk 0:00:34.5]} 29... Rf8 {[%clk 0:00:58.2]} 30. Rd3 {[%clk 0:00:33.5]} 30...
Kg5 {[%clk 0:00:57]} 31. Rg3+ {[%clk 0:00:31.8]} 31... Kh6 {[%clk 0:00:51.8]}
32. Qh3# {[%clk 0:00:30.2]} 1-0

[Event "Betsys MČR v online bleskovém šachu 2021"]
[Site "Chess.com"]
[Date "2021.04.17"]
[Round "5"]
[White "Michelangelo111"]
[Black "avsokol"]
[Result "0-1"]
[WhiteElo "2122"]
[BlackElo "2395"]
[TimeControl "180+1"]
[EndTime "9:46:18 PDT"]
[Termination "Uživatel avsokol zvítězil na čas"]

1. Nf3 {[%clk 0:03:00.9]} 1... Nf6 {[%clk 0:02:57.8]} 2. g3 {[%clk 0:03:00.7]}
2... g6 {[%clk 0:02:57.6]} 3. Bg2 {[%clk 0:03:01.6]} 3... Bg7 {[%clk 0:02:58.1]}
4. O-O {[%clk 0:03:01.8]} 4... O-O {[%clk 0:02:58.7]} 5. d4 {[%clk 0:03:02.5]}
5... d6 {[%clk 0:02:58.9]} 6. c4 {[%clk 0:03:01.7]} 6... Nbd7 {[%clk 0:02:58.6]}
7. Nc3 {[%clk 0:03:00.6]} 7... e5 {[%clk 0:02:58.9]} 8. e4 {[%clk 0:02:57]} 8...
c6 {[%clk 0:02:58.6]} 9. h3 {[%clk 0:02:53.9]} 9... a5 {[%clk 0:02:57.5]} 10.
Be3 {[%clk 0:02:53]} 10... exd4 {[%clk 0:02:53.1]} 11. Nxd4 {[%clk 0:02:52.3]}
11... Re8 {[%clk 0:02:53.7]} 12. Re1 {[%clk 0:02:44.4]} 12... Nc5 {[%clk
0:02:53.1]} 13. Bf4 {[%clk 0:02:33.5]} 13... a4 {[%clk 0:02:44.3]} 14. Nc2
{[%clk 0:02:29.3]} 14... Nfd7 {[%clk 0:02:38.3]} 15. Bxd6 {[%clk 0:02:18.7]}
15... a3 {[%clk 0:02:35.2]} 16. e5 {[%clk 0:02:00.9]} 16... axb2 {[%clk
0:02:32.8]} 17. Rb1 {[%clk 0:01:58.7]} 17... Qa5 {[%clk 0:02:14.4]} 18. Qf3
{[%clk 0:01:12.7]} 18... Nxe5 {[%clk 0:02:02]} 19. Qe3 {[%clk 0:00:55.5]} 19...
Ncd3 {[%clk 0:01:39.3]} 20. Qxd3 {[%clk 0:00:41.4]} 20... Bf5 {[%clk 0:01:16.3]}
21. Qd2 {[%clk 0:00:08.7]} 21... Nxc4 {[%clk 0:01:14.4]} 22. Rxe8+ {[%clk
0:00:07.5]} 22... Rxe8 {[%clk 0:01:14]} 23. Qf4 {[%clk 0:00:05.5]} 23... Bxc2
{[%clk 0:01:08.9]} 24. Qxc4 {[%clk 0:00:01.9]} 24... Qxc3 {[%clk 0:01:06.3]} 0-1

[Event "Betsys MČR v online bleskovém šachu 2021"]
[Site "Chess.com"]
[Date "2021.04.17"]
[Round "5"]
[White "Hanicka1517"]
[Black "JIDEMONI"]
[Result "1/2-1/2"]
[WhiteElo "1627"]
[BlackElo "1895"]
[TimeControl "180+1"]
[EndTime "9:46:19 PDT"]
[Termination "Remíza dohodou"]

1. d4 {[%clk 0:03:00.9]} 1... Nf6 {[%clk 0:02:57.8]} 2. Nf3 {[%clk 0:03:01.1]}
2... c5 {[%clk 0:02:56.6]} 3. g3 {[%clk 0:02:59.3]} 3... g6 {[%clk 0:02:53.8]}
4. Bg2 {[%clk 0:02:59.5]} 4... Bg7 {[%clk 0:02:53.8]} 5. O-O {[%clk 0:02:59.6]}
5... O-O {[%clk 0:02:53.8]} 6. c4 {[%clk 0:02:58.3]} 6... cxd4 {[%clk
0:02:50.6]} 7. Nxd4 {[%clk 0:02:57.1]} 7... Nc6 {[%clk 0:02:50.1]} 8. Nxc6
{[%clk 0:02:52.3]} 8... bxc6 {[%clk 0:02:45.7]} 9. Nc3 {[%clk 0:02:50.3]} 9...
Qc7 {[%clk 0:02:45.4]} 10. Bf4 {[%clk 0:02:45.8]} 10... e5 {[%clk 0:02:42.1]}
11. Bg5 {[%clk 0:02:45.2]} 11... h6 {[%clk 0:02:40.9]} 12. Bd2 {[%clk 0:02:42]}
12... Bb7 {[%clk 0:02:38.4]} 13. Qc1 {[%clk 0:02:35.7]} 13... Kh7 {[%clk
0:02:33.9]} 14. c5 {[%clk 0:02:30.9]} 14... Rfe8 {[%clk 0:02:26.3]} 15. e4
{[%clk 0:02:29.9]} 15... Rad8 {[%clk 0:02:21.8]} 16. b4 {[%clk 0:02:28.3]} 16...
d6 {[%clk 0:02:20.4]} 17. cxd6 {[%clk 0:02:24.5]} 17... Qxd6 {[%clk 0:02:17.6]}
18. Be3 {[%clk 0:02:24.7]} 18... Qxb4 {[%clk 0:02:14.2]} 19. Bxa7 {[%clk
0:02:21.3]} 19... Ba6 {[%clk 0:02:05.2]} 20. Re1 {[%clk 0:02:17.5]} 20... Ng4
{[%clk 0:01:48.8]} 21. Rb1 {[%clk 0:02:11.4]} 21... Qe7 {[%clk 0:01:40.4]} 22.
Be3 {[%clk 0:02:07.7]} 22... Nxe3 {[%clk 0:01:39.4]} 23. Qxe3 {[%clk 0:02:07.3]}
23... Rd3 {[%clk 0:01:31.5]} 24. Qb6 {[%clk 0:02:03.7]} 24... Bc4 {[%clk
0:01:24.7]} 25. Rec1 {[%clk 0:01:51.4]} 25... Qd6 {[%clk 0:01:15.3]} 26. Bf1
{[%clk 0:01:48]} 26... Rd4 {[%clk 0:01:12.4]} 27. Ne2 {[%clk 0:01:38.3]} 27...
Bxe2 {[%clk 0:01:10.2]} 28. Bxe2 {[%clk 0:01:38.6]} 28... Rd2 {[%clk 0:01:02.5]}
29. Rd1 {[%clk 0:01:38.3]} 29... Rd8 {[%clk 0:00:56.9]} 30. Qb3 {[%clk
0:01:36.7]} 30... Rxd1+ {[%clk 0:00:50.7]} 31. Rxd1 {[%clk 0:01:35.5]} 31... Qe7
{[%clk 0:00:50.5]} 32. Rxd8 {[%clk 0:01:32.3]} 32... Qxd8 {[%clk 0:00:51.4]} 33.
Qd3 {[%clk 0:01:32.3]} 33... Qa5 {[%clk 0:00:43.5]} 34. Qa6 {[%clk 0:01:17.9]}
34... Qxa6 {[%clk 0:00:35.8]} 35. Bxa6 {[%clk 0:01:17.2]} 35... Bf8 {[%clk
0:00:35.7]} 36. Bc4 {[%clk 0:01:16.2]} 36... f6 {[%clk 0:00:34.9]} 37. a4 {[%clk
0:01:15.1]} 37... Bb4 {[%clk 0:00:34.3]} 38. Kf1 {[%clk 0:01:13.1]} 38... Kg7
{[%clk 0:00:34.5]} 39. Ke2 {[%clk 0:01:13.5]} 39... Kf8 {[%clk 0:00:35.1]} 40.
Kd3 {[%clk 0:01:13.9]} 40... Ke7 {[%clk 0:00:35.6]} 41. Kc2 {[%clk 0:01:14.3]}
41... Kd6 {[%clk 0:00:35.7]} 42. Kb3 {[%clk 0:01:14.6]} 42... Ba5 {[%clk
0:00:34.8]} 43. f3 {[%clk 0:01:13.7]} 1/2-1/2